bitfinex/quotes_BTCUSD_20241028
["timestamp","ask_amount","ask_price","bid_price","bid_amount"]
[1730133494917,1.07906336,68699.0,68698.0,5e-07]
[1730133495166,0.022,68698.0,68697.0,5e-07]
[1730133495392,0.6475901,68698.0,68697.0,5e-07]
[1730133495599,0.8651927,68698.0,68697.0,5e-07]
[1730133495806,0.37,68688.0,68687.0,5e-07]
[1730133496010,1.11136124,68688.0,68687.0,5e-07]
[1730133496218,1.11336124,68688.0,68687.0,5e-07]
[1730133496418,1.28800999,68688.0,68687.0,5e-07]
[1730133496622,1.13618074,68688.0,68687.0,5e-07]
[1730133496843,1.28668455,68688.0,68687.0,5e-07]
[1730133497153,1.28422434,68688.0,68687.0,5e-07]
[1730133497360,1.30573105,68688.0,68687.0,5e-07]
[1730133497569,1.31973105,68688.0,68687.0,5e-07]
[1730133497969,0.60107877,68669.0,68668.0,0.2176026]
[1730133498274,0.83377512,68669.0,68668.0,0.2176026]
[1730133498445,0.255651,68657.0,68656.0,0.000823]
[1730133498650,0.2905994,68657.0,68656.0,0.000823]
[1730133499240,0.30289514,68657.0,68656.0,0.000823]
[1730133499445,0.3377814,68657.0,68656.0,0.000823]
[1730133499907,0.29053726,68657.0,68656.0,0.000823]
[1730133500794,0.29353726,68657.0,68656.0,0.000823]
[1730133501218,0.38399003,68657.0,68656.0,0.000823]
[1730133502590,0.29853726,68657.0,68656.0,0.000823]
[1730133502916,0.38399003,68657.0,68656.0,0.000823]
[1730133503367,0.40632241,68657.0,68656.0,0.000823]
[1730133503580,0.42914432,68657.0,68656.0,0.000823]
[1730133504158,0.40681651,68657.0,68656.0,0.000823]
[1730133505354,0.40181651,68657.0,68656.0,0.000823]
[1730133505828,0.39881651,68657.0,68656.0,0.000823]
[1730133506029,0.40981651,68657.0,68656.0,0.000823]
[1730133506206,0.53988636,68657.0,68656.0,0.000823]
[1730133506412,0.40981651,68657.0,68656.0,0.000823]
[1730133506611,0.39881651,68657.0,68656.0,0.000823]
[1730133506821,0.42076692,68657.0,68656.0,0.000823]
[1730133510573,0.57127073,68657.0,68656.0,0.000823]
[1730133511409,0.55927073,68657.0,68656.0,0.000823]
[1730133511626,0.70977454,68657.0,68656.0,0.000823]
[1730133511848,0.72277454,68657.0,68656.0,0.000823]
[1730133512268,0.57712354,68657.0,68642.0,0.005]
[1730133512523,0.145681,68643.0,68642.0,0.005]
[1730133512696,0.03483667,68643.0,68641.0,0.0815]
[1730133512920,0.20291641,68642.0,68641.0,0.0815]
[1730133513328,0.20291641,68642.0,68641.0,0.0865]
[1730133513523,0.18051967,68642.0,68641.0,0.0815]
[1730133514103,0.18963837,68642.0,68641.0,0.0865]
[1730133514276,0.18963837,68642.0,68641.0,0.0815]
[1730133514504,0.18963837,68642.0,68641.0,0.0865]
[1730133514505,0.3632856,68642.0,68641.0,0.0865]
[1730133514718,0.49786304,68642.0,68641.0,0.0815]
[1730133514987,0.49786304,68642.0,68638.0,0.005]
[1730133514988,0.145689,68639.0,68638.0,0.005]
[1730133515217,0.18981367,68639.0,68638.0,0.005]
[1730133516401,0.19081367,68639.0,68638.0,0.005]
[1730133516638,0.19181367,68639.0,68638.0,0.005]
[1730133516864,0.04612467,68639.0,68638.0,0.005]
[1730133517072,0.18269488,68639.0,68638.0,0.005]
[1730133517290,0.20552301,68639.0,68638.0,0.005]
[1730133518046,0.17051713,68639.0,68638.0,0.005]
[1730133518246,0.20565901,68639.0,68638.0,0.005]
[1730133518429,0.18283088,68639.0,68638.0,0.005]
[1730133520435,0.19367812,68639.0,68638.0,0.005]
[1730133521660,0.19381673,68639.0,68638.0,0.005]
[1730133522699,0.23442671,68639.0,68638.0,0.005]
[1730133522897,0.25725629,68639.0,68638.0,0.005825]
[1730133523432,0.25725629,68639.0,68634.0,0.0759]
[1730133523433,0.40295029,68639.0,68634.0,0.0759]
[1730133523820,0.145696,68636.0,68634.0,0.0759]
[1730133524002,0.08673771,68635.0,68634.0,0.0759]
[1730133525287,0.08773771,68635.0,68634.0,0.0759]
[1730133525711,0.07701187,68635.0,68634.0,0.0759]
[1730133525889,0.07701187,68635.0,68629.0,0.292244]
[1730133525890,0.23360276,68635.0,68629.0,0.000823]
[1730133526123,0.06511898,68634.0,68630.0,0.1636515]
[1730133526330,0.08690476,68633.0,68631.0,0.145704]
[1730133526530,0.002,68635.0,68632.0,0.145704]
[1730133526736,0.08717747,68634.0,68632.0,0.145704]
[1730133526869,0.08717747,68633.0,68632.0,0.145704]
[1730133527072,0.08717747,68633.0,68630.0,0.3093595]
[1730133527073,0.13232498,68633.0,68630.0,0.0179435]
[1730133527296,0.145706,68631.0,68630.0,0.0179435]
[1730133528999,0.03542279,68624.0,68623.0,0.29622681]
[1730133529194,0.03542275,68624.0,68623.0,0.145723]
[1730133529814,0.03542275,68624.0,68623.0,0.29622681]
[1730133529951,0.001,68624.0,68623.0,0.29622681]
[1730133530185,0.03641708,68624.0,68623.0,0.29622681]
[1730133530381,0.03641708,68624.0,68623.0,0.37512681]
[1730133531108,0.03741708,68624.0,68623.0,0.224623]
[1730133531312,0.03641708,68624.0,68623.0,0.224623]
[1730133532065,0.03741708,68624.0,68623.0,0.145723]
[1730133532493,0.03741708,68624.0,68619.0,0.1071]
[1730133532744,0.03541708,68623.0,68619.0,0.1071]
[1730133532923,0.03541708,68622.0,68619.0,0.145731]
[1730133533131,0.147723,68624.0,68618.0,0.000823]
[1730133533132,0.03541708,68621.0,68618.0,0.000823]
[1730133533361,0.005,68597.0,68596.0,0.04334694]
[1730133533583,0.005,68597.0,68578.0,0.13004084]
[1730133533584,0.155827,68574.0,68573.0,0.00077699]
[1730133533789,0.27669685,68574.0,68573.0,0.00077699]
[1730133534003,0.37669685,68574.0,68573.0,0.00077699]
[1730133534214,0.44105103,68574.0,68573.0,0.00077699]
[1730133534620,0.84655484,68574.0,68573.0,0.00077699]
[1730133534835,0.94948884,68574.0,68573.0,0.00077699]
[1730133535055,0.84755484,68574.0,68573.0,0.00077699]
[1730133535521,0.79320066,68574.0,68573.0,0.00077699]
[1730133535725,0.91861714,68574.0,68573.0,0.00077699]
[1730133535927,0.85602031,68574.0,68573.0,0.00077699]
[1730133536136,0.94147308,68574.0,68573.0,0.00077699]
[1730133536351,0.96756041,68574.0,68573.0,0.00077699]
[1730133536590,1.05201318,68574.0,68573.0,0.00077699]
[1730133536803,1.05101318,68574.0,68573.0,0.00077699]
[1730133537004,1.05766351,68574.0,68573.0,0.00077699]
[1730133537645,1.03480757,68574.0,68573.0,0.00077699]
[1730133537925,1.07198555,68574.0,68573.0,0.00077699]
[1730133538354,1.07198555,68574.0,68556.0,0.87438702]
[1730133538355,0.69374954,68566.0,68556.0,0.87438702]
[1730133538559,0.88809153,68566.0,68557.0,0.21875615]
[1730133538762,0.88809153,68566.0,68558.0,0.21875615]
[1730133538972,0.88809153,68566.0,68554.0,0.000824]
[1730133539600,0.89509153,68566.0,68554.0,0.000824]
[1730133540220,0.86002412,68566.0,68554.0,0.000824]
[1730133540423,0.89689454,68566.0,68554.0,0.000824]
[1730133540632,0.74884823,68566.0,68554.0,0.000824]
[1730133540848,0.91975377,68566.0,68554.0,0.000824]
[1730133541079,0.91775377,68566.0,68554.0,0.000824]
[1730133541693,0.89701467,68566.0,68554.0,0.000824]
[1730133541897,0.7115619,68566.0,68554.0,0.000824]
[1730133542097,0.7065619,68566.0,68554.0,0.000824]
[1730133542299,0.6995619,68566.0,68554.0,0.000824]
[1730133542505,0.47160532,68566.0,68554.0,0.000824]
[1730133542832,0.30705809,68566.0,68554.0,0.000824]
[1730133543484,0.28557988,68566.0,68554.0,0.000824]
[1730133543671,0.18712711,68566.0,68554.0,0.000824]
[1730133543813,0.19212711,68566.0,68554.0,0.000824]
[1730133544013,0.20012711,68566.0,68554.0,0.000824]
[1730133544201,0.20012711,68566.0,68556.0,0.21875615]
[1730133544635,0.18170323,68566.0,68556.0,0.21875615]
[1730133544881,0.17670323,68566.0,68556.0,0.21875615]
[1730133545230,0.16870323,68566.0,68556.0,0.21875615]
[1730133545438,0.17370323,68566.0,68556.0,0.21875615]
[1730133545679,0.17970323,68566.0,68556.0,0.21875615]
[1730133545852,0.17470323,68566.0,68556.0,0.21875615]
[1730133546032,0.02885923,68566.0,68557.0,0.291727]
[1730133546241,0.16870323,68566.0,68556.0,0.21875615]
[1730133546450,0.16970323,68566.0,68556.0,0.21875615]
[1730133546698,0.16970323,68566.0,68558.0,0.14586]
[1730133547077,0.02385923,68566.0,68560.0,0.145857]
[1730133547277,0.16970323,68566.0,68558.0,0.14586]
[1730133547539,0.16970323,68566.0,68558.0,0.36461615]
[1730133548285,0.16870323,68566.0,68558.0,0.36461615]
[1730133548685,0.16970323,68566.0,68559.0,0.145858]
[1730133549101,0.16870323,68566.0,68559.0,0.145858]
[1730133549285,0.16870323,68566.0,68560.0,0.145857]
[1730133549645,0.146844,68566.0,68560.0,0.145857]
[1730133551159,0.146844,68566.0,68553.0,0.291742]
[1730133551160,0.001,68566.0,68559.0,0.21875615]
[1730133551388,0.001,68566.0,68559.0,0.437575]
[1730133551622,0.001,68566.0,68559.0,0.145858]
[1730133551872,0.001,68566.0,68557.0,0.21875615]
[1730133552123,0.155843,68567.0,68558.0,0.15050381]
[1730133552364,0.001,68566.0,68558.0,0.15050381]
[1730133552840,0.145845,68566.0,68558.0,0.15050381]
[1730133553319,0.146845,68566.0,68558.0,0.15050381]
[1730133553561,0.001,68566.0,68558.0,0.15050381]
[1730133553811,0.145847,68565.0,68558.0,0.15050381]
[1730133554052,0.16869987,68565.0,68558.0,0.15050381]
[1730133554313,0.02285287,68565.0,68558.0,0.15050381]
[1730133554794,0.16869987,68565.0,68558.0,0.15050381]
[1730133555260,0.16869987,68565.0,68556.0,0.145865]
[1730133555261,0.005,68557.0,68556.0,0.145866]
[1730133555489,0.005,68557.0,68548.0,0.21875615]
[1730133555717,0.02285287,68565.0,68553.0,0.145872]
[1730133555718,0.005,68554.0,68553.0,0.145872]
[1730133556555,0.005,68554.0,68547.0,0.291766]
[1730133556556,0.005,68554.0,68552.0,0.145874]
[1730133556758,0.005,68554.0,68547.0,0.291766]
[1730133556958,0.005,68554.0,68552.0,0.145872]
[1730133557189,0.005,68554.0,68553.0,0.145872]
[1730133557375,0.005,68554.0,68551.0,0.145875]
[1730133557707,0.005,68554.0,68550.0,0.1467]
[1730133557912,0.005,68553.0,68550.0,0.000824]
[1730133558230,0.150876,68551.0,68550.0,0.000824]
[1730133558412,0.005,68551.0,68550.0,0.000824]
[1730133558655,0.255,68559.0,68550.0,0.000824]
[1730133558656,0.001,68554.0,68550.0,0.000824]
[1730133559063,0.296735,68556.0,68550.0,0.000824]
[1730133559239,0.145872,68554.0,68550.0,0.000824]
[1730133559469,0.001,68551.0,68550.0,0.000824]
[1730133559898,0.001,68551.0,68550.0,0.15132781]
[1730133560091,0.150865,68557.0,68550.0,0.29720581]
[1730133560295,0.14587,68555.0,68551.0,0.15050381]
[1730133560605,0.013486,68554.0,68551.0,0.15050381]
[1730133560796,0.013486,68553.0,68551.0,0.15050381]
[1730133561003,0.013486,68553.0,68550.0,0.000824]
[1730133561004,0.21875615,68555.0,68550.0,0.000824]
[1730133561225,0.15937209,68554.0,68550.0,0.000824]
[1730133561411,0.01350009,68553.0,68550.0,0.000824]
[1730133561578,0.01350009,68552.0,68550.0,0.000824]
[1730133561752,0.01450009,68551.0,68550.0,0.000824]
[1730133561960,0.01451804,68551.0,68550.0,0.000824]
[1730133562183,0.01451804,68551.0,68550.0,0.15132781]
[1730133562391,0.00272213,68551.0,68550.0,0.23922781]
[1730133562601,0.22375615,68560.0,68550.0,0.23422781]
[1730133562602,0.001,68553.0,68550.0,0.23422781]
[1730133562811,0.001,68553.0,68551.0,0.29637981]
[1730133563215,0.02167044,68552.0,68551.0,0.29637981]
[1730133563435,0.02167044,68552.0,68551.0,0.15050381]
[1730133563651,0.02167044,68552.0,68551.0,0.29637981]
[1730133565487,0.02267044,68552.0,68551.0,0.29637981]
[1730133565708,0.02285505,68558.0,68555.0,0.145866]
[1730133565913,0.02285505,68558.0,68556.0,0.15050381]
[1730133570542,0.145856,68561.0,68556.0,0.15050381]
[1730133571562,0.005,68563.0,68556.0,0.15050381]
[1730133571563,0.005,68562.0,68556.0,0.15050381]
[1730133571736,0.001,68558.0,68556.0,0.15050381]
[1730133572102,0.001,68558.0,68556.0,0.29136881]
[1730133572513,0.150849,68564.0,68556.0,0.29136881]
[1730133572642,0.001,68561.0,68556.0,0.29136881]
[1730133573032,0.001,68561.0,68556.0,0.14550381]
[1730133574080,0.145853,68562.0,68556.0,0.14550381]
[1730133574334,0.001,68558.0,68556.0,0.14550381]
[1730133574536,0.01361165,68557.0,68556.0,0.14550381]
[1730133574989,0.01361165,68557.0,68556.0,0.29136981]
[1730133576062,0.01461165,68557.0,68556.0,0.29136981]
[1730133577434,0.01461451,68557.0,68556.0,0.29136981]
[1730133578732,0.01461451,68557.0,68556.0,0.29336981]
[1730133579475,0.01461451,68557.0,68556.0,0.29136981]
[1730133580878,0.01461451,68557.0,68556.0,0.29336981]
[1730133581324,0.01462248,68557.0,68556.0,0.29336981]
[1730133581532,0.01462248,68557.0,68556.0,0.29136981]
[1730133584317,0.001,68557.0,68556.0,0.29136981]
[1730133584562,0.01462429,68557.0,68556.0,0.29136981]
[1730133584905,0.001,68557.0,68556.0,0.29136981]
[1730133588564,0.001,68557.0,68556.0,0.33507254]
[1730133589412,0.001,68557.0,68556.0,0.33509551]
[1730133590053,0.001,68557.0,68556.0,0.29136981]
[1730133590480,0.001,68557.0,68556.0,0.29336981]
[1730133590810,0.001,68557.0,68556.0,0.33709551]
[1730133591183,0.001,68557.0,68556.0,0.29336981]
[1730133591981,0.001,68557.0,68556.0,0.29136981]
[1730133592407,0.001,68557.0,68556.0,0.29336981]
[1730133593018,0.001,68557.0,68556.0,0.37882258]
[1730133593399,0.001652,68565.0,68558.0,0.002]
[1730133593560,0.001652,68565.0,68564.0,0.145849]
[1730133593759,0.01527883,68565.0,68564.0,0.145849]
[1730133594600,0.03813042,68565.0,68564.0,0.145849]
[1730133594862,0.03813042,68565.0,68564.0,0.144349]
[1730133595501,0.03814172,68565.0,68564.0,0.144349]
[1730133595721,0.03914172,68565.0,68564.0,0.144349]
[1730133595914,0.03914409,68565.0,68564.0,0.144349]
[1730133596065,0.03814409,68565.0,68564.0,0.144349]
[1730133596503,0.03914409,68565.0,68564.0,0.158349]
[1730133597721,0.0162925,68565.0,68564.0,0.158349]
[1730133598590,0.002652,68565.0,68564.0,0.158349]
[1730133598835,0.01629948,68565.0,68564.0,0.158349]
[1730133600867,0.016301,68565.0,68564.0,0.158349]
[1730133603913,0.016301,68565.0,68564.0,0.21470653]
[1730133603914,0.002652,68565.0,68564.0,0.21470653]
[1730133604150,0.002652,68565.0,68564.0,0.42156787]
[1730133604401,0.001652,68573.0,68572.0,0.145832]
[1730133604657,0.005,68588.0,68572.0,0.145832]
[1730133604658,0.296611,68585.0,68572.0,0.26321887]
[1730133604898,0.291605,68586.0,68581.0,0.05635753]
[1730133605138,0.291605,68586.0,68581.0,0.35267334]
[1730133605139,0.145805,68585.0,68581.0,0.35267334]
[1730133605391,0.21875615,68589.0,68584.0,0.05635753]
[1730133605642,0.145795,68589.0,68588.0,0.05635753]
[1730133605882,0.145795,68589.0,68588.0,0.20686134]
[1730133605883,0.18130889,68589.0,68588.0,0.20686134]
[1730133606619,0.18130889,68589.0,68588.0,0.15050381]
[1730133606860,0.03551389,68589.0,68588.0,0.15050381]
[1730133607338,0.01365919,68589.0,68588.0,0.29630181]
[1730133608290,0.145787,68594.0,68589.0,0.145794]
[1730133608518,0.0136286,68593.0,68590.0,0.29629681]
[1730133608741,0.0136286,68592.0,68590.0,0.15050381]
[1730133608988,0.145788,68593.0,68590.0,0.15050381]
[1730133609490,0.291564,68596.0,68590.0,0.15050381]
[1730133609491,0.145785,68594.0,68590.0,0.29629581]
[1730133609718,0.291552,68599.0,68590.0,0.29629581]
[1730133609719,0.291524,68605.0,68597.0,0.005]
[1730133609963,0.21875615,68602.0,68599.0,0.08580282]
[1730133610198,0.01362499,68604.0,68599.0,0.08580282]
[1730133610199,0.291532,68604.0,68600.0,0.15050381]
[1730133610417,0.145766,68603.0,68600.0,0.15050381]
[1730133610643,0.145759,68607.0,68602.0,0.145767]
[1730133610897,0.145759,68607.0,68598.0,0.007]
[1730133610898,0.145741,68615.0,68611.0,0.145749]
[1730133611131,0.005,68617.0,68615.0,0.08580282]
[1730133611132,0.145738,68617.0,68615.0,0.08580282]
[1730133611378,0.21875615,68621.0,68616.0,0.29624181]
[1730133611379,0.14573,68621.0,68616.0,0.29624181]
[1730133611650,0.00665,68630.0,68620.0,0.08580282]
[1730133611925,0.00665,68630.0,68625.0,0.23152182]
[1730133611926,0.00165,68630.0,68625.0,0.23152182]
[1730133612150,0.00165,68630.0,68625.0,0.38202563]
[1730133612415,0.00165,68642.0,68637.0,0.291383]
[1730133612664,0.00165,68642.0,68640.0,0.08580282]
[1730133612904,0.00165,68642.0,68641.0,0.15050381]
[1730133613827,0.00165,68642.0,68641.0,0.30118881]
[1730133614947,0.00165,68642.0,68641.0,0.51994496]
[1730133615177,0.00165,68642.0,68641.0,0.30118881]
[1730133615424,0.00265,68642.0,68641.0,0.31518881]
[1730133615860,0.00165,68642.0,68641.0,0.30318881]
[1730133616311,0.00265,68642.0,68641.0,0.62174778]
[1730133616537,0.00265,68642.0,68641.0,0.40299163]
[1730133616705,0.00265,68642.0,68641.0,0.50299163]
[1730133617598,0.00265,68642.0,68641.0,0.64259163]
[1730133617963,0.00165,68656.0,68655.0,0.152655]
[1730133618154,0.00165,68656.0,68655.0,0.38896163]
[1730133619381,0.00265,68656.0,68655.0,0.40296163]
[1730133619813,0.00165,68656.0,68655.0,0.38896163]
[1730133620480,0.00165,68656.0,68655.0,0.60771778]
[1730133620736,0.00165,68656.0,68655.0,0.38896163]
[1730133621153,0.00165,68656.0,68655.0,0.40296163]
[1730133621856,0.00165,68656.0,68655.0,0.47806163]
[1730133622088,0.00165,68656.0,68655.0,0.57806163]
[1730133622312,0.001652,68658.0,68657.0,0.152651]
[1730133622515,0.21875615,68676.0,68675.0,0.145613]
[1730133622746,0.21875615,68676.0,68675.0,0.15050381]
[1730133622973,0.005,68685.0,68677.0,0.005]
[1730133623176,0.0798,68687.0,68677.0,0.005]
[1730133623177,0.005,68686.0,68679.0,0.08580282]
[1730133623422,0.145599,68682.0,68680.0,0.15050381]
[1730133623617,0.291188,68684.0,68680.0,0.15050381]
[1730133623618,0.1506,68681.0,68680.0,0.15050381]
[1730133624303,0.145598,68682.0,68680.0,0.15050381]
[1730133624524,0.291183,68686.0,68680.0,0.15050381]
[1730133624768,0.145595,68684.0,68680.0,0.15050381]
[1730133624992,0.145596,68683.0,68680.0,0.15050381]
[1730133625214,0.005,68686.0,68680.0,0.15050381]
[1730133625440,0.145593,68685.0,68680.0,0.15050381]
[1730133625675,0.145593,68685.0,68680.0,0.15150381]
[1730133625900,0.145594,68684.0,68680.0,0.15150381]
[1730133626133,0.145594,68684.0,68680.0,0.15050381]
[1730133626559,0.145594,68684.0,68680.0,0.15150381]
[1730133627244,0.370978,68687.0,68680.0,0.15150381]
[1730133627245,0.005,68686.0,68680.0,0.15150381]
[1730133627447,0.005,68686.0,68680.0,0.29710481]
[1730133627606,0.145592,68685.0,68680.0,0.15050381]
[1730133627816,0.011648,68688.0,68680.0,0.15050381]
[1730133628027,0.145588,68687.0,68680.0,0.15150381]
[1730133628408,0.145588,68687.0,68680.0,0.15050381]
[1730133628610,0.14559,68686.0,68680.0,0.15050381]
[1730133628804,0.011648,68688.0,68685.0,0.08580282]
[1730133628805,0.001648,68688.0,68685.0,0.08580282]
[1730133629033,0.001648,68688.0,68686.0,0.15050381]
[1730133629630,0.001648,68688.0,68687.0,0.145587]
[1730133629841,0.001648,68688.0,68687.0,0.15050381]
[1730133630152,0.001648,68688.0,68687.0,0.29609081]
[1730133630517,0.001648,68688.0,68687.0,0.15050381]
[1730133630833,0.001648,68688.0,68687.0,0.30109081]
[1730133631691,0.001648,68688.0,68687.0,0.40089363]
[1730133631935,0.02408577,68695.0,68694.0,0.23137582]
[1730133632165,0.02408577,68695.0,68694.0,0.38187963]
[1730133632419,0.00165,68699.0,68698.0,0.145564]
[1730133632651,0.00165,68699.0,68698.0,0.29606781]
[1730133633137,0.00165,68699.0,68698.0,0.30106781]
[1730133633354,0.00165,68699.0,68698.0,0.30306781]
[1730133633808,0.00165,68699.0,68698.0,0.40306781]
[1730133634424,0.001652,68711.0,68698.0,0.40306781]
[1730133634425,0.001652,68711.0,68710.0,0.007]
[1730133634630,0.001652,68711.0,68710.0,0.38884563]
[1730133634837,0.001652,68711.0,68710.0,0.47464845]
[1730133635982,0.001652,68711.0,68710.0,0.6934046]
[1730133636188,0.001652,68711.0,68710.0,0.48864845]
[1730133636392,0.001652,68711.0,68710.0,0.58864845]
[1730133636814,0.001652,68711.0,68710.0,0.81864845]
[1730133637463,0.0179435,68732.0,68725.0,0.145505]
[1730133637702,0.0179435,68732.0,68726.0,0.29600781]
[1730133637959,0.0229435,68732.0,68726.0,0.15050381]
[1730133638163,0.005,68729.0,68710.0,0.019]
[1730133638425,0.145525,68717.0,68711.0,0.145536]
[1730133638678,0.08580282,68721.0,68709.0,0.145539]
[1730133638679,0.150529,68715.0,68709.0,0.145539]
[1730133638924,0.150529,68715.0,68698.0,0.005]
[1730133638925,0.0774,68713.0,68703.0,0.21875615]
[1730133639152,0.03484782,68712.0,68703.0,0.21875615]
[1730133639391,0.04895635,68711.0,68703.0,0.20379615]
[1730133639674,0.0774,68713.0,68703.0,0.20379615]
[1730133639675,0.005,68709.0,68703.0,0.20379615]
[1730133639886,0.03484782,68708.0,68704.0,0.14555]
[1730133640090,0.04395635,68707.0,68704.0,0.145551]
[1730133640310,0.04395635,68706.0,68704.0,0.145551]
[1730133640528,0.04395635,68705.0,68704.0,0.145551]
[1730133640978,0.04395635,68705.0,68702.0,0.291112]
[1730133641205,0.04395635,68705.0,68686.0,0.1]
[1730133641206,0.06627319,68704.0,68699.0,0.291125]
[1730133641427,0.04418587,68703.0,68701.0,0.145556]
[1730133641647,0.02231684,68704.0,68701.0,0.436674]
[1730133641648,0.04418587,68702.0,68701.0,0.436674]
[1730133643539,0.150541,68709.0,68702.0,0.145555]
[1730133643797,0.18068695,68708.0,68702.0,0.145555]
[1730133644038,0.02262568,68707.0,68702.0,0.145555]
[1730133644260,0.04425211,68706.0,68702.0,0.145555]
[1730133644490,0.145544,68708.0,68702.0,0.145555]
[1730133644491,0.04425211,68705.0,68702.0,0.145555]
[1730133644782,0.04425211,68705.0,68701.0,0.014]
[1730133644783,0.04425211,68704.0,68701.0,0.014]
[1730133645018,0.04425211,68703.0,68701.0,0.145556]
[1730133645257,0.04425211,68702.0,68701.0,0.145556]
[1730133646030,0.04425211,68702.0,68701.0,0.159556]
[1730133646268,0.04425211,68702.0,68701.0,0.014]
[1730133646515,0.04425211,68702.0,68701.0,0.159558]
[1730133646765,0.04425211,68702.0,68701.0,0.014]
[1730133646995,0.04425211,68702.0,68701.0,0.159558]
[1730133647245,0.05782103,68702.0,68699.0,0.291123]
[1730133647482,0.05782103,68701.0,68700.0,0.14556]
[1730133647731,0.05782103,68701.0,68700.0,0.29606381]
[1730133647969,0.04425211,68701.0,68700.0,0.29606381]
[1730133648202,0.05782507,68701.0,68700.0,0.29606381]
[1730133648425,0.04425211,68701.0,68700.0,0.29606381]
[1730133648919,0.04425211,68701.0,68700.0,0.38186663]
[1730133649169,0.04425211,68701.0,68700.0,0.29606381]
[1730133649412,0.04425211,68701.0,68700.0,0.40086663]
[1730133650794,0.04425211,68701.0,68700.0,0.40286663]
[1730133651027,0.04425211,68701.0,68700.0,0.40086663]
[1730133651253,0.145546,68707.0,68704.0,0.005]
[1730133651494,0.18995231,68706.0,68705.0,0.15050381]
[1730133651731,0.20352874,68706.0,68705.0,0.15050381]
[1730133652191,0.18995231,68706.0,68705.0,0.15050381]
[1730133652462,0.20353037,68706.0,68705.0,0.15050381]
[1730133654567,0.20353037,68706.0,68700.0,0.001642]
[1730133654784,0.05798337,68705.0,68702.0,0.145556]
[1730133655003,0.04440531,68704.0,68702.0,0.145556]
[1730133655224,0.04440531,68703.0,68701.0,0.36925996]
[1730133655453,0.0805,68705.0,68702.0,0.145556]
[1730133655685,0.05801398,68704.0,68702.0,0.145556]
[1730133655917,0.04442913,68703.0,68702.0,0.145556]
[1730133656141,0.05801814,68703.0,68702.0,0.145556]
[1730133656352,0.04890963,68703.0,68702.0,0.145556]
[1730133657037,0.04890963,68703.0,68701.0,0.15050381]
[1730133657268,0.04890963,68702.0,68701.0,0.29605981]
[1730133657511,0.19446563,68702.0,68701.0,0.16450381]
[1730133657748,0.19446563,68702.0,68701.0,0.014]
[1730133657987,0.69424532,68702.0,68701.0,0.014]
[1730133658210,0.69424532,68702.0,68686.0,0.21875615]
[1730133658211,0.373987,68687.0,68686.0,0.21875615]
[1730133658448,0.43878241,68687.0,68686.0,0.21875615]
[1730133658695,0.43882084,68687.0,68686.0,0.21875615]
[1730133658930,0.43882084,68687.0,68679.0,0.21875615]
[1730133658931,0.155602,68680.0,68679.0,0.21875615]
[1730133659224,0.20183693,68680.0,68679.0,0.21875615]
[1730133659442,0.145617,68673.0,68666.0,0.145631]
[1730133659658,0.25777605,68673.0,68666.0,0.145631]
[1730133660069,0.145621,68672.0,68666.0,0.145631]
[1730133660297,0.03535905,68671.0,68667.0,0.15050381]
[1730133660521,0.03535905,68670.0,68667.0,0.15050381]
[1730133660752,0.03535905,68669.0,68667.0,0.29613381]
[1730133660976,0.03535905,68668.0,68663.0,0.291274]
[1730133661217,0.222418,68673.0,68667.0,0.14563]
[1730133661440,0.03533606,68672.0,68666.0,0.145632]
[1730133661665,0.03533606,68671.0,68667.0,0.145628]
[1730133661880,0.03633606,68670.0,68666.0,0.291264]
[1730133662096,0.03533606,68669.0,68664.0,0.15050381]
[1730133662335,0.05795784,68668.0,68664.0,0.15050381]
[1730133662561,0.02262178,68668.0,68667.0,0.14563]
[1730133662757,0.05791171,68668.0,68665.0,0.291269]
[1730133662978,0.03528993,68667.0,68664.0,0.15050381]
[1730133663165,0.02262178,68668.0,68665.0,0.291269]
[1730133663377,0.001,68672.0,68650.0,0.11316686]
[1730133663378,0.005,68666.0,68650.0,0.11316686]
[1730133663586,0.005,68666.0,68660.0,0.21875615]
[1730133663587,0.05790709,68665.0,68660.0,0.21875615]
[1730133663789,0.02262178,68663.0,68656.0,0.15050381]
[1730133663980,0.32655931,68664.0,68656.0,0.15050381]
[1730133663981,0.02262178,68661.0,68656.0,0.29615481]
[1730133664204,0.03528531,68660.0,68656.0,0.29615481]
[1730133664408,0.03528531,68659.0,68656.0,0.29615481]
[1730133664525,0.03528531,68658.0,68656.0,0.29615481]
[1730133664731,0.03528531,68657.0,68656.0,0.29615481]
[1730133665206,0.03526603,68657.0,68656.0,0.29615481]
[1730133665876,0.03626603,68657.0,68656.0,0.29615481]
[1730133666516,0.03624534,68657.0,68656.0,0.29615481]
[1730133666764,0.03624534,68657.0,68656.0,0.15050381]
[1730133667592,0.03624534,68657.0,68656.0,0.29615681]
[1730133668288,0.0145559,68657.0,68656.0,0.29615681]
[1730133668700,0.001,68657.0,68656.0,0.29615681]
[1730133668918,0.01455795,68657.0,68656.0,0.29615681]
[1730133669333,0.001,68657.0,68656.0,0.29615681]
[1730133669537,0.01455385,68657.0,68656.0,0.29615681]
[1730133670189,0.001,68657.0,68656.0,0.29615681]
[1730133676959,0.145642,68662.0,68656.0,0.29615681]
[1730133677161,0.14564,68662.0,68656.0,0.15214581]
[1730133677398,0.001,68657.0,68656.0,0.16514581]
[1730133677883,0.14564,68662.0,68656.0,0.15214581]
[1730133678113,0.0769,68661.0,68656.0,0.16514581]
[1730133678333,0.145645,68660.0,68656.0,0.16514581]
[1730133678558,0.0769,68661.0,68656.0,0.16514581]
[1730133679010,0.0769,68661.0,68656.0,0.15214581]
[1730133679475,0.145642,68662.0,68656.0,0.15214581]
[1730133680448,0.001,68661.0,68656.0,0.16514581]
[1730133680684,0.001,68661.0,68656.0,0.29779881]
[1730133680907,0.145642,68662.0,68656.0,0.29779881]
[1730133681119,0.146642,68662.0,68656.0,0.31079881]
[1730133681567,0.145642,68662.0,68656.0,0.29779881]
[1730133682037,0.001,68661.0,68657.0,0.14565]
[1730133682270,0.001,68661.0,68658.0,0.15050381]
[1730133683415,0.145641,68662.0,68658.0,0.15050381]
[1730133683634,0.146641,68662.0,68658.0,0.15050381]
[1730133683855,0.01357531,68661.0,68658.0,0.15050381]
[1730133684083,0.145638,68663.0,68658.0,0.29615181]